bitfinex/quotes_BTCUSD_20250901
["timestamp","ask_amount","ask_price","bid_price","bid_amount"]
[1756693034013,1.08420048,108110.0,108100.0,0.004]
[1756693034215,1.08424048,108110.0,108100.0,0.18801387]
[1756693034417,1.08324048,108110.0,108100.0,0.18501387]
[1756693034634,0.92352048,108110.0,108100.0,0.18701387]
[1756693034851,1.08424048,108110.0,108100.0,0.005]
[1756693034990,0.92452048,108110.0,108100.0,0.19001387]
[1756693035188,1.08428048,108110.0,108100.0,0.19001387]
[1756693035902,1.11208448,108110.0,108100.0,0.19001387]
[1756693036102,1.11208448,108110.0,108100.0,0.005]
[1756693036416,1.11208448,108110.0,108100.0,0.19001387]
[1756693036841,1.11208448,108110.0,108100.0,0.005]
[1756693037244,1.11208448,108110.0,108100.0,0.19001387]
[1756693037663,1.11208448,108110.0,108100.0,0.005]
[1756693039169,1.20506449,108110.0,108100.0,0.005]
[1756693040074,1.29336081,108110.0,108100.0,0.005]
[1756693040877,1.29336081,108110.0,108100.0,0.003]
[1756693041034,0.18501387,108100.0,108090.0,0.00125092]
[1756693041230,0.62493985,108100.0,108090.0,0.00125092]
[1756693041439,0.63154021,108100.0,108090.0,0.00125092]
[1756693041676,0.67631021,108100.0,108090.0,0.00125092]
[1756693041837,0.83599021,108100.0,108090.0,0.00125092]
[1756693042074,1.17599021,108100.0,108090.0,0.00125092]
[1756693042278,1.6112325,108100.0,108090.0,0.00125092]
[1756693042642,1.26428653,108100.0,108090.0,0.00125092]
[1756693042847,1.6112325,108100.0,108090.0,0.00125092]
[1756693043762,1.6122325,108100.0,108090.0,0.00825092]
[1756693044403,1.6132325,108100.0,108090.0,0.01025092]
[1756693044611,1.17591021,108100.0,108090.0,0.00125092]
[1756693045039,1.17991021,108100.0,108090.0,0.00325092]
[1756693045559,1.0617341,108100.0,108090.0,0.00325092]
[1756693045762,1.2212941,108100.0,108090.0,0.00325092]
[1756693046943,1.30959042,108100.0,108090.0,0.00325092]
[1756693048020,1.0617341,108100.0,108090.0,0.00325092]
[1756693048201,1.2211741,108100.0,108090.0,0.00325092]
[1756693048845,0.67336424,108100.0,108090.0,0.00325092]
[1756693049053,1.04812421,108100.0,108090.0,0.00325092]
[1756693049290,1.20748421,108100.0,108090.0,0.00325092]
[1756693051608,1.04812421,108100.0,108090.0,0.00325092]
[1756693051842,1.20740421,108100.0,108090.0,0.00325092]
[1756693052702,1.04812421,108100.0,108090.0,0.00325092]
[1756693052909,1.20740421,108100.0,108090.0,0.00325092]
[1756693054410,1.20736421,108100.0,108090.0,0.00325092]
[1756693055825,1.20732421,108100.0,108090.0,0.00325092]
[1756693056451,1.20728421,108100.0,108090.0,0.00325092]
[1756693056604,1.20064385,108100.0,108090.0,0.00536092]
[1756693056816,1.20064385,108100.0,108090.0,0.00325092]
[1756693056817,1.20724421,108100.0,108090.0,0.00325092]
[1756693057028,1.20724421,108100.0,108090.0,0.00536092]
[1756693057506,1.20524421,108100.0,108090.0,0.00225092]
[1756693057711,1.04251385,108100.0,108090.0,0.00125092]
[1756693057918,1.20163385,108100.0,108090.0,0.00336092]
[1756693058122,1.20263385,108100.0,108090.0,0.00536092]
[1756693058340,1.20420421,108100.0,108090.0,0.00325092]
[1756693058686,1.20320421,108100.0,108090.0,0.00125092]
[1756693058890,1.20520421,108100.0,108090.0,0.00125092]
[1756693059101,1.20459385,108100.0,108090.0,0.00636092]
[1756693059514,1.20420421,108100.0,108090.0,0.00636092]
[1756693059740,1.20420421,108100.0,108090.0,0.00425092]
[1756693059952,1.20420421,108100.0,108090.0,0.00636092]
[1756693060542,1.20420421,108100.0,108090.0,0.00425092]
[1756693061578,1.20420421,108100.0,108090.0,0.00636092]
[1756693062241,1.20420421,108100.0,108090.0,0.00425092]
[1756693063785,1.30976065,108100.0,108090.0,0.00425092]
[1756693064620,1.22146433,108100.0,108090.0,0.00425092]
[1756693065845,1.29262433,108100.0,108090.0,0.00425092]
[1756693067006,1.29263728,108100.0,108090.0,0.00425092]
[1756693069061,1.69072804,108100.0,108090.0,0.00425092]
[1756693069289,1.66607738,108100.0,108090.0,0.00425092]
[1756693069495,1.78078964,108100.0,108090.0,0.00425092]
[1756693070211,1.78266964,108100.0,108090.0,0.00425092]
[1756693070679,1.78166964,108100.0,108090.0,0.00125092]
[1756693070954,1.62270964,108100.0,108090.0,0.00125092]
[1756693071094,1.78166964,108100.0,108090.0,0.00125092]
[1756693071657,1.78266964,108100.0,108090.0,0.00325092]
[1756693071864,1.78166964,108100.0,108090.0,0.00125092]
[1756693072072,1.78166964,108100.0,108090.0,0.00325092]
[1756693072298,1.78266964,108100.0,108090.0,0.00325092]
[1756693074970,1.62370964,108100.0,108090.0,0.00325092]
[1756693075176,1.78266964,108100.0,108090.0,0.00325092]
[1756693077338,1.62370964,108100.0,108090.0,0.00325092]
[1756693077562,1.75890954,108100.0,108090.0,0.00325092]
[1756693077771,1.78267066,108100.0,108090.0,0.00325092]
[1756693078560,1.82481127,108100.0,108090.0,0.00325092]
[1756693079546,1.66585127,108100.0,108090.0,0.00325092]
[1756693079900,1.82478568,108100.0,108090.0,0.00325092]
[1756693080598,0.88363742,108100.0,108090.0,0.00325092]
[1756693080839,1.36964007,108100.0,108090.0,0.00539092]
[1756693081063,1.36315977,108100.0,108090.0,0.00539092]
[1756693081297,1.36315977,108100.0,108090.0,0.00325092]
[1756693081518,1.7364862,108100.0,108090.0,0.00325092]
[1756693081761,0.04638036,108050.0,108040.0,0.0002]
[1756693082001,1.07969324,108050.0,108040.0,0.0002]
[1756693082230,1.0641257,108050.0,108040.0,0.18745662]
[1756693082479,1.0641257,108050.0,108040.0,0.00234]
[1756693082660,1.0919467,108050.0,108040.0,0.00234]
[1756693083072,1.0920343,108050.0,108040.0,0.18745662]
[1756693083282,1.0920343,108050.0,108040.0,0.00234]
[1756693083909,1.0940343,108050.0,108040.0,0.19045662]
[1756693084249,0.92181118,108050.0,108040.0,0.19293662]
[1756693084449,0.77198277,108050.0,108040.0,0.19293662]
[1756693084610,0.90312177,108050.0,108040.0,0.19093662]
[1756693084808,0.74516177,108050.0,108040.0,0.19293662]
[1756693085012,0.90412177,108050.0,108040.0,0.19293662]
[1756693085430,0.90212177,108050.0,108040.0,0.18893662]
[1756693085625,0.90312177,108050.0,108040.0,0.19293662]
[1756693085830,0.0010876,108050.0,108040.0,0.19293662]
[1756693086022,0.00269796,108050.0,108040.0,0.21387544]
[1756693086221,0.0010876,108050.0,108040.0,0.21387544]
[1756693086624,0.00469796,108050.0,108040.0,0.30985545]
[1756693086891,0.0030876,108050.0,108040.0,0.30985545]
[1756693087102,0.0030876,108050.0,108040.0,0.70985545]
[1756693087257,0.0030876,108050.0,108040.0,0.30985545]
[1756693087643,0.35064982,108050.0,108040.0,0.30985545]
[1756693087846,0.0030876,108050.0,108040.0,0.30985545]
[1756693089128,0.0030876,108050.0,108040.0,0.19445662]
[1756693089129,0.53735967,108050.0,108040.0,0.19445662]
[1756693089301,0.92719967,108050.0,108040.0,0.00934]
[1756693089510,1.27476189,108050.0,108040.0,0.0072]
[1756693089715,0.92719967,108050.0,108040.0,0.0072]
[1756693092014,1.45603822,108050.0,108040.0,0.0072]
[1756693093810,1.269036,108050.0,108040.0,0.0072]
[1756693094015,1.61659822,108050.0,108040.0,0.0072]
[1756693094581,1.18061968,108050.0,108040.0,0.00934]
[1756693095195,0.76324282,108050.0,108040.0,0.19445662]
[1756693095427,1.11031267,108050.0,108040.0,0.19445662]
[1756693096903,0.76324282,108050.0,108040.0,0.19445662]
[1756693097105,0.92521318,108050.0,108040.0,0.19445662]
[1756693097280,0.88044318,108050.0,108040.0,0.19445662]
[1756693097482,0.92509318,108050.0,108040.0,0.19445662]
[1756693097950,1.11023267,108050.0,108040.0,0.19445662]
[1756693098176,1.11234267,108050.0,108040.0,0.19445662]
[1756693098335,1.11234267,108050.0,108040.0,0.00934]
[1756693098538,1.11530267,108050.0,108040.0,0.0072]
[1756693098738,1.11530267,108050.0,108040.0,0.00934]
[1756693099061,1.11530267,108050.0,108040.0,0.19445662]
[1756693099513,1.10862231,108050.0,108040.0,0.19445662]
[1756693099690,0.87875282,108050.0,108040.0,0.19445662]
[1756693099889,0.4156806,108050.0,108040.0,0.19445662]
[1756693100034,0.73541982,108050.0,108040.0,0.19593662]
[1756693100240,0.55731018,108050.0,108040.0,0.19593662]
[1756693100442,0.55569982,108050.0,108040.0,0.19593662]
[1756693100683,0.39703018,108050.0,108040.0,0.19593662]
[1756693100893,0.55731018,108050.0,108040.0,0.19593662]
[1756693101307,0.51092982,108050.0,108040.0,0.19593662]
[1756693101538,0.51254018,108050.0,108040.0,0.19593662]
[1756693101717,0.55569982,108050.0,108040.0,0.19593662]
[1756693101919,0.55731018,108050.0,108040.0,0.19593662]
[1756693102122,0.55569982,108050.0,108040.0,0.19593662]
[1756693102331,0.00469796,108050.0,108040.0,0.19593662]
[1756693102526,0.51246018,108050.0,108040.0,0.19593662]
[1756693102675,0.55723018,108050.0,108040.0,0.19593662]
[1756693102876,0.51246018,108050.0,108040.0,0.19593662]
[1756693103689,0.55723018,108050.0,108040.0,0.19593662]
[1756693103887,1.08747967,108050.0,108040.0,0.0072]
[1756693104119,1.43504189,108050.0,108040.0,0.0072]
[1756693104302,1.11530167,108050.0,108040.0,0.0072]
[1756693107910,0.95510167,108050.0,108040.0,0.19231662]
[1756693108074,1.11510167,108050.0,108040.0,0.0072]
[1756693108880,0.95510167,108050.0,108040.0,0.19231662]
[1756693109065,1.11502167,108050.0,108040.0,0.19231662]
[1756693109260,0.77000218,108050.0,108040.0,0.19231662]
[1756693109548,1.07021167,108050.0,108040.0,0.19231662]
[1756693109773,1.11498167,108050.0,108040.0,0.19231662]
[1756693109943,1.11494167,108050.0,108040.0,0.19231662]
[1756693110598,0.07728996,108050.0,108040.0,0.19428662]
[1756693110802,0.0030876,108050.0,108040.0,0.30968545]
[1756693111920,0.0030876,108050.0,108040.0,0.65724767]
[1756693112357,0.00051323,108050.0,108040.0,0.65724767]
[1756693112778,0.00051323,108050.0,108040.0,0.65324767]
[1756693113229,0.00151323,108050.0,108040.0,0.65724767]
[1756693113634,0.00051323,108050.0,108040.0,0.65324767]
[1756693113840,0.00151323,108050.0,108040.0,0.65824767]
[1756693114239,0.001,108050.0,108040.0,0.65524767]
[1756693114445,0.002,108050.0,108040.0,0.66024767]
[1756693115560,0.002,108050.0,108040.0,0.66547767]
[1756693116891,1e-08,108050.0,108040.0,1.05386731]
[1756693117858,1e-08,108050.0,108040.0,1.21358731]
[1756693118084,1e-08,108050.0,108040.0,1.05386731]
[1756693118296,1e-08,108050.0,108040.0,1.21354731]
[1756693119832,1e-08,108050.0,108040.0,0.86446509]
[1756693120049,1e-08,108050.0,108040.0,0.89959509]
[1756693120276,1e-08,108050.0,108040.0,1.06442509]
[1756693120468,1e-08,108050.0,108040.0,0.90482509]
[1756693120691,1e-08,108050.0,108040.0,1.06450509]
[1756693120891,1e-08,108050.0,108040.0,1.06598509]
[1756693121393,1e-08,108050.0,108040.0,1.06446509]
[1756693122128,0.00214001,108050.0,108040.0,0.51120545]
[1756693122355,0.00515001,108050.0,108040.0,0.28829663]
[1756693122567,0.00515001,108050.0,108040.0,0.46883545]
[1756693122779,1e-08,108050.0,108040.0,0.47080545]
[1756693123227,1e-08,108050.0,108040.0,0.47228545]
[1756693123439,1e-08,108050.0,108040.0,0.81984767]
[1756693123856,0.00515001,108050.0,108040.0,0.51120545]
[1756693124057,1e-08,108050.0,108040.0,0.67096545]
[1756693124964,1e-08,108050.0,108040.0,0.67244545]
[1756693125958,1e-08,108050.0,108040.0,0.67096545]
[1756693127848,1e-08,108050.0,108040.0,0.76848545]
[1756693128072,1e-08,108050.0,108040.0,1.02523767]
[1756693128273,1e-08,108050.0,108040.0,1.36523767]
[1756693128475,0.00462036,108090.0,108080.0,0.20598693]
[1756693128688,0.00676036,108090.0,108080.0,0.36566693]
[1756693129255,0.35432258,108090.0,108080.0,0.36566693]
[1756693129667,0.35532258,108090.0,108080.0,0.36966693]
[1756693129819,0.35432258,108090.0,108080.0,0.36866693]
[1756693130385,0.35532258,108090.0,108080.0,0.19304811]
[1756693130610,0.40940691,108090.0,108080.0,0.19304811]
[1756693130816,0.40009258,108090.0,108080.0,0.19304811]
[1756693131752,0.35532258,108090.0,108080.0,0.19304811]
[1756693132138,0.35532258,108090.0,108080.0,0.30910694]
[1756693132139,0.00615,108090.0,108080.0,0.30910694]
[1756693132352,0.00776036,108090.0,108080.0,0.30910694]
[1756693132504,0.00776036,108090.0,108080.0,0.30696694]
[1756693132712,0.00615,108090.0,108080.0,0.30696694]
[1756693132911,0.00776036,108090.0,108080.0,0.46648694]
[1756693134114,0.00615,108090.0,108080.0,0.46648694]
[1756693134418,0.00776036,108090.0,108080.0,0.46648694]
[1756693135384,0.35532258,108090.0,108080.0,0.46648694]
[1756693136357,0.35532258,108090.0,108080.0,0.30696694]
[1756693136579,0.58512357,108090.0,108080.0,0.19304811]
[1756693136753,0.74448357,108090.0,108080.0,0.19304811]
[1756693137574,0.55945258,108090.0,108080.0,0.19304811]
[1756693137800,0.74448357,108090.0,108080.0,0.19304811]
[1756693140693,0.23756135,108090.0,108080.0,0.19304811]
[1756693140899,0.51464258,108090.0,108080.0,0.19304811]
[1756693141108,0.55941258,108090.0,108080.0,0.19304811]
[1756693141307,0.05253036,108090.0,108080.0,0.19304811]
[1756693141514,0.39547222,108090.0,108080.0,0.19518811]
[1756693141713,0.05114,108090.0,108080.0,0.19218811]
[1756693141937,0.40031258,108090.0,108080.0,0.19004811]
[1756693142141,0.40131258,108090.0,108080.0,0.19004811]
[1756693142563,0.40031258,108090.0,108080.0,0.18504811]
[1756693142978,0.40231258,108090.0,108080.0,0.20912693]
[1756693143221,0.35270222,108090.0,108080.0,0.20912693]
[1756693143604,0.00998036,108090.0,108080.0,0.20698693]
[1756693143938,0.00461036,108090.0,108080.0,0.20912693]
[1756693144071,0.003,108090.0,108080.0,0.20912693]
[1756693144269,0.35748258,108090.0,108080.0,0.20698693]
[1756693146823,0.54251357,108090.0,108080.0,0.001]
[1756693147055,1.27484579,108090.0,108080.0,0.001]
[1756693147276,1.29212956,108090.0,108080.0,0.001]
[1756693147490,0.94456734,108090.0,108080.0,0.001]
[1756693147692,0.9445662,108090.0,108080.0,0.001]
[1756693148672,1.38510843,108090.0,108080.0,0.001]
[1756693149085,1.41292043,108090.0,108080.0,0.001]
[1756693149304,1.3956378,108090.0,108080.0,0.001]
[1756693149669,1.41292296,108090.0,108080.0,0.001]
[1756693151337,1.85652296,108090.0,108080.0,0.001]
[1756693152262,1.94481928,108090.0,108080.0,0.001]
[1756693152478,6.97131341,108090.0,108080.0,0.001]
[1756693153124,6.97778936,108090.0,108080.0,0.001]
[1756693153557,6.99767679,108090.0,108080.0,0.001]
[1756693153978,7.15719679,108090.0,108080.0,0.001]
[1756693154216,7.13730936,108090.0,108080.0,0.001]
[1756693154419,6.28266492,108090.0,108080.0,0.001]
[1756693154637,6.85652296,108090.0,108080.0,0.001]
[1756693154966,7.01600296,108090.0,108080.0,0.001]
[1756693155298,6.85652296,108090.0,108080.0,0.001]
[1756693155505,2.01625073,108090.0,108080.0,0.001]
[1756693155952,1.85649073,108090.0,108080.0,0.001]
[1756693156163,2.01621073,108090.0,108080.0,0.001]
[1756693159459,1.15975593,108090.0,108080.0,0.001]
[1756693159630,2.01621073,108090.0,108080.0,0.001]
[1756693160080,2.01619676,108090.0,108080.0,0.001]
[1756693161432,1.85647676,108090.0,108080.0,0.001]
[1756693161869,2.01607676,108090.0,108080.0,0.001]
[1756693163364,2.01607676,108090.0,108080.0,0.00316]
[1756693163598,2.01607676,108090.0,108080.0,0.001]
[1756693163821,1.85647676,108090.0,108080.0,0.001]
[1756693164031,1.49167558,108090.0,108080.0,0.00316]
[1756693164217,1.65131558,108090.0,108080.0,0.001]
[1756693164585,1.44690558,108090.0,108080.0,0.001]
[1756693164852,1.65127558,108090.0,108080.0,0.001]
[1756693165441,1.9988378,108090.0,108080.0,0.001]
[1756693172925,2.08713412,108090.0,108080.0,0.001]
[1756693173135,1.9988378,108090.0,108080.0,0.001]
[1756693174543,2.04260578,108090.0,108080.0,0.001]
[1756693175044,1.81174165,108090.0,108080.0,0.001]
[1756693175263,2.01567165,108090.0,108080.0,0.001]
[1756693175936,1.9983978,108090.0,108080.0,0.001]
[1756693176382,2.01568328,108090.0,108080.0,0.001]
[1756693177709,2.0805452,108090.0,108080.0,0.001]
[1756693177921,2.04213741,108090.0,108080.0,0.001]
[1756693178532,2.04217741,108090.0,108080.0,0.001]
[1756693178935,2.04213741,108090.0,108080.0,0.001]
[1756693179117,1.88301741,108090.0,108080.0,0.001]
[1756693179412,2.04213741,108090.0,108080.0,0.001]
[1756693180684,1.88301741,108090.0,108080.0,0.001]
[1756693180888,2.04213741,108090.0,108080.0,0.001]
[1756693181117,1.86573193,108090.0,108080.0,0.001]
[1756693181346,2.04214152,108090.0,108080.0,0.001]
[1756693184649,2.04214578,108090.0,108080.0,0.001]
[1756693186116,2.34780865,108090.0,108080.0,0.001]
[1756693186651,2.40673452,108090.0,108080.0,0.001]
[1756693187062,2.34780865,108090.0,108080.0,0.001]
[1756693188015,7.37245931,108090.0,108080.0,0.001]
[1756693188219,0.22986949,108050.0,108040.0,0.0002]
[1756693188418,0.72419562,108050.0,108040.0,0.00368]
[1756693188623,0.72419562,108050.0,108040.0,0.00584]
[1756693189657,0.72419562,108050.0,108040.0,0.01031632]
[1756693190016,0.73820588,108050.0,108040.0,0.01031632]
[1756693190254,0.73820588,108050.0,108040.0,0.19543294]
[1756693190638,0.73820588,108050.0,108040.0,0.19691294]
[1756693190843,0.20650036,108050.0,108040.0,0.20191294]
[1756693191073,0.73920588,108050.0,108040.0,0.20191294]
[1756693191249,0.74839017,108050.0,108040.0,0.20191294]
[1756693191672,0.39337603,108050.0,108040.0,0.20191294]
[1756693191886,0.39498639,108050.0,108040.0,0.20191294]
[1756693192300,0.55410639,108050.0,108040.0,0.20191294]
[1756693192454,0.55249603,108050.0,108040.0,0.20191294]
[1756693192644,0.55410639,108050.0,108040.0,0.20191294]
[1756693192856,0.55249603,108050.0,108040.0,0.20191294]
[1756693193052,0.39498639,108050.0,108040.0,0.20191294]
[1756693193297,0.001,108050.0,108040.0,0.22285176]
[1756693193740,0.001,108050.0,108040.0,0.31583177]
[1756693196374,0.001,108050.0,108040.0,0.47495177]
[1756693197599,0.34860603,108050.0,108040.0,0.31583177]
[1756693199731,0.35518639,108050.0,108040.0,0.31435177]
[1756693199938,0.35021639,108050.0,108040.0,0.31435177]
[1756693200517,0.51128639,108050.0,108040.0,0.31435177]
[1756693200741,0.50933639,108050.0,108040.0,0.31435177]
[1756693201158,0.69638588,108050.0,108040.0,0.31435177]
[1756693201396,0.74417588,108050.0,108040.0,0.19827294]
[1756693201822,0.39498639,108050.0,108040.0,0.20028294]
[1756693202115,0.55410639,108050.0,108040.0,0.20028294]
[1756693203808,0.73920588,108050.0,108040.0,0.20028294]
[1756693204304,0.55410639,108050.0,108040.0,0.20028294]
[1756693205032,0.73920588,108050.0,108040.0,0.20028294]
[1756693205514,0.74222588,108050.0,108040.0,0.20028294]
[1756693205942,0.00261036,108050.0,108040.0,0.22122176]
[1756693206202,0.34860603,108050.0,108040.0,0.31568177]
[1756693206418,0.00261036,108050.0,108040.0,0.31568177]
[1756693207597,0.001,108050.0,108040.0,0.31568177]
[1756693208481,0.001,108050.0,108040.0,0.47480177]
[1756693210608,0.001,108050.0,108040.0,0.31420177]
[1756693210828,0.001,108050.0,108040.0,0.47476177]
[1756693212345,0.001,108050.0,108040.0,0.31568177]
[1756693212544,0.001,108050.0,108040.0,0.47328177]
[1756693212748,0.001,108050.0,108040.0,0.47476177]
[1756693213406,0.001,108050.0,108040.0,0.31420177]
[1756693213614,0.34860603,108050.0,108040.0,0.47328177]
[1756693214031,0.33455551,108050.0,108040.0,0.47328177]
[1756693215714,0.33952551,108050.0,108040.0,0.47127177]
[1756693215923,0.524625,108050.0,108040.0,0.21921176]
[1756693216132,0.57100536,108050.0,108040.0,0.19827294]
[1756693217633,0.73008536,108050.0,108040.0,0.01315632]
[1756693217841,0.75790536,108050.0,108040.0,0.01315632]
[1756693218938,1.09790536,108050.0,108040.0,0.01315632]
[1756693219185,1.09790536,108050.0,108040.0,0.00967632]
[1756693219186,1.52444088,108050.0,108040.0,0.00967632]
[1756693219402,1.6127372,108050.0,108040.0,0.00967632]
[1756693219622,1.4536572,108050.0,108040.0,0.00967632]
[1756693219833,1.6127372,108050.0,108040.0,0.00967632]
[1756693220042,1.4536572,108050.0,108040.0,0.00567632]
[1756693220251,1.28018169,108050.0,108040.0,0.00567632]
[1756693220717,1.18988537,108050.0,108040.0,0.00067632]
[1756693220927,1.19088537,108050.0,108040.0,0.00167632]
[1756693221114,1.19188537,108050.0,108040.0,0.00167632]
[1756693221319,1.03280537,108050.0,108040.0,0.00167632]
[1756693221530,1.19188537,108050.0,108040.0,0.00167632]
[1756693221936,1.52544088,108050.0,108040.0,0.00167632]
[1756693222143,1.5536722,108050.0,108040.0,0.00167632]
[1756693222562,1.57760824,108050.0,108040.0,0.00167632]
[1756693222970,1.41852824,108050.0,108040.0,0.00167632]
[1756693223182,1.57760824,108050.0,108040.0,0.00167632]
[1756693224052,0.69924986,108050.0,108040.0,0.00167632]
[1756693224293,1.11141066,108050.0,108040.0,0.18679294]
[1756693224505,1.11302102,108050.0,108040.0,0.00167632]
[1756693224727,1.46069219,108050.0,108040.0,0.00167632]
[1756693225119,1.5536722,108050.0,108040.0,0.00167632]
[1756693226825,1.20600103,108050.0,108040.0,0.00167632]
[1756693227030,1.04692103,108050.0,108040.0,0.00167632]
[1756693227194,0.95394102,108050.0,108040.0,0.00167632]
[1756693227417,1.11302102,108050.0,108040.0,0.00167632]
[1756693227643,1.11287293,108050.0,108040.0,0.00167632]
[1756693228189,0.95379293,108050.0,108040.0,0.18890294]
[1756693228396,1.11287293,108050.0,108040.0,0.18890294]
[1756693228810,1.11287293,108050.0,108040.0,0.18679294]
[1756693229519,1.11287293,108050.0,108040.0,0.00167632]
[1756693230058,1.11126257,108050.0,108040.0,0.00167632]
[1756693230303,0.94916257,108050.0,108040.0,0.18890294]
[1756693230507,0.58134117,108050.0,108040.0,0.18890294]
[1756693230679,0.37910153,108050.0,108040.0,0.18890294]
[1756693230890,0.58134117,108050.0,108040.0,0.18890294]
[1756693231112,0.77307102,108050.0,108040.0,0.18890294]
[1756693232845,0.77307102,108050.0,108040.0,0.18679294]
[1756693234458,0.77307102,108050.0,108040.0,0.00167632]
[1756693234669,1.46074219,108050.0,108040.0,0.00167632]
[1756693235064,1.5537222,108050.0,108040.0,0.00167632]
[1756693236366,1.5536822,108050.0,108040.0,0.00167632]
[1756693237729,1.3946422,108050.0,108040.0,0.00167632]
[1756693237935,1.20605103,108050.0,108040.0,0.00167632]
[1756693238349,1.5537222,108050.0,108040.0,0.00167632]
[1756693238700,1.20605103,108050.0,108040.0,0.00167632]
[1756693239496,1.20605103,108050.0,108040.0,0.18890294]
[1756693239497,1.11142066,108050.0,108040.0,0.18890294]
[1756693239722,1.10640066,108050.0,108040.0,0.18890294]
[1756693240134,1.11303102,108050.0,108040.0,0.18890294]
[1756693240987,1.11303102,108050.0,108040.0,0.18679294]
[1756693241612,1.11142066,108050.0,108040.0,0.18679294]
[1756693241749,0.58793153,108050.0,108040.0,0.18890294]
[1756693241951,0.77303102,108050.0,108040.0,0.18679294]
[1756693243176,0.77303102,108050.0,108040.0,0.00167632]
[1756693244068,0.75906433,108050.0,108040.0,0.00167632]
[1756693245731,0.60002433,108050.0,108040.0,0.18679294]
[1756693245924,0.75906433,108050.0,108040.0,0.18890294]
[1756693246416,0.75906433,108050.0,108040.0,0.00167632]
[1756693248809,1.09276881,108050.0,108040.0,0.00167632]
[1756693248985,0.75906433,108050.0,108040.0,0.00167632]
[1756693251624,1.52574882,108050.0,108040.0,0.00167632]
[1756693251836,1.55224295,108050.0,108040.0,0.00167632]
[1756693252043,1.99584295,108050.0,108040.0,0.00167632]
[1756693252486,1.83680295,108050.0,108040.0,0.00167632]
[1756693252684,1.96934882,108050.0,108040.0,0.00167632]
[1756693254820,1.63564434,108050.0,108040.0,0.00167632]
[1756693258895,1.72394066,108050.0,108040.0,0.00167632]
[1756693259102,2.05764514,108050.0,108040.0,0.00167632]
[1756693259312,2.08413927,108050.0,108040.0,0.00167632]
[1756693259522,2.10141419,108050.0,108040.0,0.00167632]
[1756693260137,2.01311787,108050.0,108040.0,0.00167632]
[1756693261104,2.03776853,108050.0,108040.0,0.00167632]
[1756693261310,2.01311787,108050.0,108040.0,0.00167632]
[1756693262245,2.01307787,108050.0,108040.0,0.00167632]
[1756693262401,1.85407787,108050.0,108040.0,0.00167632]
[1756693262754,2.10137419,108050.0,108040.0,0.00167632]
[1756693263156,1.94236357,108050.0,108040.0,0.00167632]
[1756693263303,2.10136357,108050.0,108040.0,0.00167632]
[1756693263993,2.10136167,108050.0,108040.0,0.00167632]
[1756693266416,1.94236167,108050.0,108040.0,0.00167632]
[1756693266623,2.10136167,108050.0,108040.0,0.00167632]
[1756693268928,0.57149698,108040.0,108030.0,0.0002]
[1756693269129,1.64758946,108040.0,108030.0,0.0002]
[1756693269343,1.65258946,108040.0,108030.0,0.0002]
[1756693269489,1.65630046,108040.0,108030.0,0.0002]
[1756693270311,0.52677839,108010.0,108000.0,0.0002]
[1756693270511,1.51736736,108010.0,108000.0,0.0002]
[1756693270716,1.51940736,108010.0,108000.0,0.00219]
[1756693270926,1.55020136,108010.0,108000.0,0.00219]
[1756693271363,1.59497136,108010.0,108000.0,0.0002]
[1756693271578,1.59497136,108010.0,108000.0,0.00033231]
[1756693271806,1.52426768,108010.0,108000.0,0.00333231]
[1756693271945,1.68326768,108010.0,108000.0,0.00333231]
[1756693272140,1.68326768,108010.0,108000.0,0.00033231]
[1756693272380,1.68426768,108010.0,108000.0,0.00533231]
[1756693272582,1.68326768,108010.0,108000.0,0.00033231]
[1756693272801,0.07421436,108010.0,108000.0,0.02489113]
[1756693272993,0.07421436,108010.0,108000.0,0.64007561]
[1756693272994,0.028834,108010.0,108000.0,0.64007561]
[1756693273194,0.001,108010.0,108000.0,0.30405632]
[1756693273416,0.001,108010.0,108000.0,0.21107631]
[1756693273604,0.38108484,108010.0,108000.0,0.18850749]
[1756693273807,0.38008484,108010.0,108000.0,0.18750749]
[1756693273955,0.38008484,108010.0,108000.0,0.18913749]
[1756693274158,0.53908484,108010.0,108000.0,0.18913749]
[1756693274365,0.72425287,108010.0,108000.0,0.18913749]
[1756693275184,0.72525287,108010.0,108000.0,0.19413749]
[1756693275577,0.72525287,108010.0,108000.0,0.19513749]
[1756693275821,0.54008484,108010.0,108000.0,0.19013749]
[1756693276045,0.53908484,108010.0,108000.0,0.19013749]
[1756693276248,0.54008484,108010.0,108000.0,0.19213749]
[1756693276457,0.72525287,108010.0,108000.0,0.19213749]
[1756693276717,0.72525287,108010.0,108000.0,0.19050749]
[1756693277782,1.15072564,108010.0,108000.0,0.00333231]
[1756693278410,1.16323288,108010.0,108000.0,0.00333231]
[1756693278838,1.23443288,108010.0,108000.0,0.00333231]
[1756693279066,1.56813736,108010.0,108000.0,0.00333231]
[1756693279278,1.59463149,108010.0,108000.0,0.00333231]
[1756693280118,1.59363149,108010.0,108000.0,0.00133231]
[1756693280331,1.68192781,108010.0,108000.0,0.00133231]
[1756693280739,1.68192781,108010.0,108000.0,0.00033231]
[1756693282188,1.68292781,108010.0,108000.0,0.00133231]
[1756693282579,1.70013631,108010.0,108000.0,0.00133231]
[1756693283236,6.70013631,108010.0,108000.0,0.00133231]
[1756693283459,6.72478697,108010.0,108000.0,0.00133231]
[1756693283658,6.70013631,108010.0,108000.0,0.00133231]
[1756693284077,6.70013089,108010.0,108000.0,0.00133231]
[1756693284503,6.54113089,108010.0,108000.0,0.00133231]
[1756693284737,6.70213089,108010.0,108000.0,0.00133231]
[1756693284934,6.70113089,108010.0,108000.0,0.00033231]
[1756693285148,6.69913089,108010.0,108000.0,0.00033231]
[1756693285368,6.70413089,108010.0,108000.0,0.00133231]
[1756693285582,6.70713089,108010.0,108000.0,0.00133231]
[1756693285784,6.54813089,108010.0,108000.0,0.00133231]
[1756693286005,6.70713089,108010.0,108000.0,0.00133231]
[1756693286650,6.54813089,108010.0,108000.0,0.00133231]
[1756693286847,6.70713089,108010.0,108000.0,0.00133231]
[1756693287268,6.54813089,108010.0,108000.0,0.00133231]
[1756693287488,1.70552053,108010.0,108000.0,0.00133231]
[1756693287683,1.2570256,108010.0,108000.0,0.00133231]
[1756693287943,1.59234044,108010.0,108000.0,0.00133231]
[1756693288321,1.43334044,108010.0,108000.0,0.00133231]
[1756693288605,1.59234044,108010.0,108000.0,0.00133231]
[1756693288811,1.43334044,108010.0,108000.0,0.00133231]
[1756693288987,1.34532192,108010.0,108000.0,0.00329231]
[1756693289217,1.68063676,108010.0,108000.0,0.00133231]
[1756693289510,1.52163676,108010.0,108000.0,0.00133231]
[1756693289744,1.34193228,108010.0,108000.0,0.00329231]
[1756693289952,0.42093148,108010.0,108000.0,0.00329231]
[1756693290158,0.91363596,108010.0,108000.0,0.00329231]
[1756693290355,1.25889596,108010.0,108000.0,0.00133231]
[1756693290761,1.58960044,108010.0,108000.0,0.00133231]